fUSD/lending_fUSD_20240828
["ID","MTS","AMOUNT","RATE_DAILY","PERIOD"]
[336506733,1724885459649,-195.648234,0.00024999,7]
[336506734,1724885459659,-151.0,0.00024999,7]
[336506735,1724885459670,-265.815978,0.00024999,7]
[336506736,1724885459681,-265.815978,0.00024999,7]
[336506737,1724885459692,-265.815978,0.00024999,7]
[336506738,1724885459701,-265.815978,0.00024999,7]
[336506739,1724885459713,-151.0,0.00024999,7]
[336506740,1724885459722,-151.0,0.00024999,7]
[336506741,1724885459731,-151.0,0.00024999,7]
[336506742,1724885459741,-459.791584,0.00024999,7]
[336506743,1724885459752,-459.791584,0.00024999,7]
[336506744,1724885459762,-3261.246997,0.00024999,7]
[336506745,1724885459772,-151.0,0.00024999,7]
[336506746,1724885459781,-3261.246997,0.00024999,7]
[336506747,1724885459791,-151.0,0.00024999,7]
[336506748,1724885459801,-151.0,0.00024999,7]
[336506749,1724885459811,-227.589775,0.00024999,7]
[336506750,1724885459820,-151.0,0.00024999,7]
[336506751,1724885459830,-227.589775,0.00024999,7]
[336506752,1724885459839,-151.077315,0.00024999,7]
[336506753,1724885459849,-155.000371,0.00024999,7]
[336506754,1724885459858,-155.000371,0.00024999,7]
[336506755,1724885459869,-15051239.76599031,0.00025,2]
[336506756,1724885459880,-500.0,0.00025,2]
[336506757,1724885459889,-417110.30543468,0.00025,2]
[336506758,1724885459899,-155.0,0.00025,2]
[336506759,1724885459909,-3352376.95880385,0.00025,2]
[336506760,1724885460267,-5515.50224008,0.00025,2]
[336506761,1724885460297,-351.73608532,0.00025,2]
[336506762,1724885460309,-308.49806753,0.00025,2]
[336506763,1724885460366,-822.822,0.00025,2]
[336506764,1724885460391,-1449.9999998,0.00025,2]
[336506765,1724885460881,-250.10479714,0.00025,2]
[336506766,1724885460893,-1106.15833539,0.00025,2]
[336506767,1724885460905,-325.43719678,0.00025,2]
[336506768,1724885460925,-188750.01846588,0.00025,2]
[336506769,1724885460936,-815.6971792,0.00025,2]
[336506770,1724885460947,-5008.17589993,0.00025,2]
[336506771,1724885460969,-27821.01315486,0.00025,2]
[336506772,1724885460980,-6074.499065,0.00025,2]
[336506773,1724885460991,-568.80754221,0.00025,2]
[336506774,1724885461018,-611.7165479,0.00025,2]
[336506775,1724885461029,-164603.52477989,0.00025,2]
[336506776,1724885461040,-431.885,0.00025,2]
[336506777,1724885461053,-3673.24567214,0.00025,2]
[336506778,1724885461068,-9109.36606121,0.00025,2]
[336506779,1724885461079,-2138.00000118,0.00025,2]
[336506780,1724885461090,-1135.31998,0.00025,2]
[336506781,1724885461101,-23991.71834705,0.00025,2]
[336506782,1724885461112,-12780.09052708,0.00025,2]
[336506783,1724885466714,300.00637895,0.00024,120]
[336506784,1724885478111,154.88,0.00010959,2]
[336506785,1724885549642,150.0,0.000112,2]
[336506805,1724885673342,150.0,0.000112,2]
[336506806,1724885797229,150.0,0.000112,2]
[336506807,1724885920239,230.92,0.000114,2]
[336506810,1724886043436,-1716.44,0.00021589,30]
[336506811,1724886043462,-1716.44,0.0002475,30]
[336506812,1724886043488,-214.3,0.000249,31]
[336506813,1724886043515,-214.3,0.000249,31]
[336506814,1724886043540,-214.3,0.000249,31]
[336506815,1724886043567,-214.3,0.000249,31]
[336506816,1724886043595,-214.3,0.000249,31]
[336506817,1724886043622,-214.3,0.000249,31]
[336506818,1724886043647,-214.3,0.000249,31]
[336506819,1724886043671,-214.3,0.000249,31]
[336506820,1724886043697,-214.3,0.000249,31]
[336506821,1724886043722,-214.3,0.000249,31]
[336506822,1724886043751,-214.3,0.000249,31]
[336506823,1724886043776,-214.3,0.000249,31]
[336506824,1724886043802,-214.3,0.000249,31]
[336506825,1724886043828,-214.3,0.000249,31]
[336506826,1724886043854,-214.3,0.000249,31]
[336506827,1724886043880,-214.3,0.000249,31]
[336506828,1724886043906,-2100.0,0.00025,30]
[336506829,1724886043928,-1116.78756668,0.00025,30]
[336506830,1724886043953,-3146.0,0.00025,30]
[336506831,1724886043976,-2326.38691795,0.00025,30]
[336506832,1724886044016,-696.0,0.00025,120]
[336506833,1724886044064,-2000.0,0.00025254,120]
[336506834,1724886044094,-718.15799439,0.00026,30]
[336506835,1724886044121,-400.0,0.0002674,120]
[336506836,1724886044145,-200.0,0.00026891,120]
[336506837,1724886044170,-2000.0,0.00026948,120]
[336506838,1724886044197,-2000.0,0.00027,120]
[336506839,1724886044222,-2951.0,0.00027,120]
[336506840,1724886044253,-214.3,0.00027,31]
[336506841,1724886044281,-214.3,0.00027,31]
[336506842,1724886044311,-214.3,0.00027,31]
[336506843,1724886044342,-214.3,0.00027,31]
[336506844,1724886044371,-214.3,0.00027,31]
[336506845,1724886044402,-214.3,0.00027,31]
[336506846,1724886044800,-214.3,0.00027,31]
[336506847,1724886044830,-214.3,0.00027,31]
[336506848,1724886044857,-214.3,0.00027,31]
[336506849,1724886044886,-214.3,0.00027,31]
[336506850,1724886044915,-214.3,0.00027,31]
[336506851,1724886044943,-214.3,0.00027,31]
[336506852,1724886044972,-214.3,0.00027,31]
[336506853,1724886045000,-214.3,0.00027,31]
[336506854,1724886045029,-214.3,0.00027,31]
[336506855,1724886045057,-214.3,0.00027,31]
[336506856,1724886045087,-214.3,0.00027,31]
[336506857,1724886045116,-214.3,0.00027,31]
[336506858,1724886045144,-214.3,0.00027,31]
[336506859,1724886045174,-214.3,0.00027,31]
[336506860,1724886045202,-214.3,0.00027,31]
[336506861,1724886045229,-214.3,0.00027,31]
[336506862,1724886045259,-214.3,0.00027,31]
[336506863,1724886045287,-214.3,0.00027,31]
[336506864,1724886045313,-200.0,0.00027397,60]
[336506865,1724886045343,-4000.0,0.00027397,30]
[336506866,1724886045369,-1716.44,0.00027912,30]
[336506867,1724886045395,-150.0,0.00028006,120]
[336506868,1724886045424,-2000.0,0.00028642,120]
[336506869,1724886045448,-605.75605224,0.00028767,120]
[336506870,1724886045493,-1800.0,0.00029,30]
[336506871,1724886045520,-214.3,0.000292,31]
[336506872,1724886045547,-214.3,0.000292,31]
[336506873,1724886045574,-214.3,0.000292,31]
[336506874,1724886045601,-214.3,0.000292,31]
[336506875,1724886045628,-214.3,0.000292,31]
[336506876,1724886045656,-214.3,0.000292,31]
[336506877,1724886045684,-214.3,0.000292,31]
[336506878,1724886045713,-214.3,0.000292,31]
[336506879,1724886045741,-214.3,0.000292,31]
[336506880,1724886045772,-214.3,0.000292,31]
[336506881,1724886045803,-214.3,0.000292,31]
[336506882,1724886045833,-214.3,0.000292,31]
[336506883,1724886045862,-214.3,0.000292,31]
[336506884,1724886045890,-214.3,0.000292,31]
[336506885,1724886045918,-214.3,0.000292,31]
[336506886,1724886045947,-214.3,0.000292,31]
[336506887,1724886045975,-214.3,0.000292,31]
[336506888,1724886046003,-214.3,0.000292,31]
[336506889,1724886046030,-214.3,0.000292,31]
[336506890,1724886046059,-214.3,0.000292,31]
[336506891,1724886046088,-214.3,0.000292,31]
[336506892,1724886046116,-214.3,0.000292,31]
[336506893,1724886046144,-214.3,0.000292,31]
[336506894,1724886046171,-214.3,0.000292,31]
[336506895,1724886046197,-150.0,0.00029427,120]
[336506896,1724886046226,-400.0,0.00029711,120]
[336506897,1724886046254,-168.76066551,0.00029781,30]
[336506898,1724886046283,-1800.0,0.0003,31]
[336506899,1724886046309,-1165.35098114,0.0003,30]
[336506900,1724886046338,-3000.0,0.0003,30]
[336506901,1724886046363,-200.0,0.0003,30]
[336506902,1724886046388,-500.0,0.0003,120]
[336506903,1724886046412,-151.0,0.0003,120]
[336506904,1724886046437,-168.76066551,0.00030219,30]
[336506905,1724886046461,-2000.0,0.00030336,120]
[336506906,1724886046487,-548.0,0.00030613,30]
[336506907,1724886046518,-168.76066551,0.00030658,30]
[336506908,1724886046551,-150.0,0.00030677,120]
[336506909,1724886046582,-250.0,0.000308,30]
[336506910,1724886046607,-1800.0,0.00031,32]
[336506911,1724886046630,-1716.44,0.00031073,30]
[336506912,1724886046656,-168.76066551,0.00031096,30]
[336506913,1724886046683,-151.0,0.00031096,120]
[336506914,1724886046711,-150.0,0.00031262,120]
[336506915,1724886046806,-214.3,0.000313,31]
[336506916,1724886046835,-214.3,0.000313,31]
[336506917,1724886046864,-214.3,0.000313,31]
[336506918,1724886046891,-214.3,0.000313,31]
[336506919,1724886046919,-214.3,0.000313,31]
[336506920,1724886046948,-214.3,0.000313,31]
[336506921,1724886046980,-214.3,0.000313,31]
[336506922,1724886047011,-214.3,0.000313,31]
[336506923,1724886047039,-214.3,0.000313,31]
[336506924,1724886047066,-214.3,0.000313,31]
[336506925,1724886047094,-214.3,0.000313,31]
[336506926,1724886047122,-214.3,0.000313,31]
[336506927,1724886047150,-214.3,0.000313,31]
[336506928,1724886047179,-214.3,0.000313,31]
[336506929,1724886047209,-214.3,0.000313,31]
[336506930,1724886047242,-214.3,0.000313,31]
[336506931,1724886047275,-214.3,0.000313,31]
[336506932,1724886047305,-214.3,0.000313,31]
[336506933,1724886047333,-214.3,0.000313,31]
[336506934,1724886047360,-214.3,0.000313,31]
[336506935,1724886047388,-214.3,0.000313,31]
[336506936,1724886047415,-214.3,0.000313,31]
[336506937,1724886047446,-214.3,0.000313,31]
[336506938,1724886047475,-214.3,0.000313,31]
[336506939,1724886047504,-168.76066551,0.00031534,30]
[336506940,1724886047531,-500.0,0.00031773,120]
[336506941,1724886047556,-1800.0,0.00032,33]
[336506942,1724886047581,-20376.97620046,0.00032,30]
[336506943,1724886047604,-1061.03669403,0.00032,30]
[336506944,1724886047630,-2000.0,0.0003203,120]
[336506945,1724886047655,-200.0,0.0003203,120]
[336506946,1724886047682,-151.0,0.00032192,120]
[336506947,1724886047707,-150.0,0.00032222,120]
[336506948,1724886047740,-400.0,0.00032682,120]
[336506949,1724886047768,-1800.0,0.00033,34]
[336506950,1724886047793,-150.0,0.00033137,120]
[336506951,1724886047818,-151.0,0.00033288,120]
[336506952,1724886047844,-150.0,0.00033449,120]
[336506953,1724886047869,-20376.97620046,0.000335,30]
[336506954,1724886047896,-214.3,0.000335,31]
[336506955,1724886047923,-214.3,0.000335,31]
[336506956,1724886047951,-214.3,0.000335,31]
[336506957,1724886047979,-214.3,0.000335,31]
[336506958,1724886048007,-214.3,0.000335,31]
[336506959,1724886048039,-214.3,0.000335,31]
[336506960,1724886048069,-214.3,0.000335,31]
[336506961,1724886048098,-214.3,0.000335,31]
[336506962,1724886048129,-214.3,0.000335,31]
[336506963,1724886048159,-214.3,0.000335,31]
[336506964,1724886048188,-214.3,0.000335,31]
[336506965,1724886048221,-214.3,0.000335,31]
[336506966,1724886048251,-768.0,0.00033674,30]
[336506967,1724886048279,-2000.0,0.00033711,120]
[336506968,1724886048307,-6235.54,0.00033847,120]
[336506969,1724886048336,-1800.0,0.00034,35]
[336506970,1724886048362,-2043.56308207,0.00034,30]
[336506971,1724886048387,-1716.44,0.00034234,30]
[336506972,1724886048412,-151.0,0.00034384,120]
[336506973,1724886048439,-1163.25312,0.000348,30]
[336506974,1724886048464,-15139.75847383,0.00034874,31]
[336506975,1724886048492,-50000.0,0.00035,35]
[336506976,1724886048518,-1551.00416,0.00035,30]
[336506977,1724886048543,-1800.0,0.00035,36]
[336506978,1724886048567,-701.52720303,0.00035,30]
[336506979,1724886048592,-150.0,0.00035,30]
[336506980,1724886048617,-598.74689279,0.00035,30]
[336506981,1724886048642,-20376.97620046,0.00035,30]
[336506982,1724886048669,-150.0,0.00035319,120]
[336506983,1724886048694,-2000.0,0.00035392,120]
[336506984,1724886048717,-151.0,0.00035479,120]
[336506985,1724886048741,-1938.755201,0.000355,30]
[336506986,1724886048765,-2326.506241,0.000356,30]
[336506987,1724886048790,-400.0,0.00035653,120]
[336506988,1724886048814,-2326.506241,0.000357,30]
[336506989,1724886048839,-2714.257281,0.000358,30]
[336506990,1724886048863,-2326.506241,0.0003582,30]
[336506991,1724886048888,-50000.0,0.00036,36]
[336506992,1724886048912,-1438.3646202,0.00036,37]
[336506993,1724886048936,-2000.0,0.00036,32]
[336506994,1724886048961,-150.0,0.00036079,120]
[336506995,1724886048986,-20376.97620046,0.000365,30]
[336506996,1724886049011,-151.0,0.00036575,120]
[336506997,1724886049035,-7847.82276549,0.00036591,30]
[336506998,1724886049060,-847.05031563,0.00036593,30]
[336506999,1724886049086,-190.91693015,0.00036594,30]
[336507000,1724886049111,-272.32589958,0.00036605,30]
[336507001,1724886049136,-538.86888066,0.00036607,30]
[336507002,1724886049160,-538.86888066,0.00036618,30]
[336507003,1724886049184,-272.32589958,0.00036619,30]
[336507004,1724886049208,-7847.82276549,0.00036621,30]
[336507005,1724886049232,-272.32589958,0.00036627,30]
[336507006,1724886049258,-847.05031563,0.00036629,30]
[336507007,1724886049283,-7847.82276549,0.00036631,30]
[336507008,1724886049307,-7847.82276549,0.00036632,30]
[336507009,1724886049334,-847.05031563,0.00036639,30]
[336507010,1724886049359,-190.91693015,0.0003664,30]
[336507011,1724886049383,-7847.82276549,0.00036674,30]
[336507012,1724886049408,-538.86888066,0.00036677,30]
[336507013,1724886049432,-156.26254,0.00036678,30]
[336507014,1724886049457,-190.91693015,0.0003668,30]
[336507015,1724886049482,-847.05031563,0.00036681,30]
[336507016,1724886049507,-272.32589958,0.00036682,30]
[336507017,1724886049531,-538.86888066,0.00036685,30]
[336507018,1724886049555,-190.91693015,0.00036686,30]
[336507019,1724886049701,-272.32589958,0.00036687,30]
[336507020,1724886049726,-538.86888066,0.0003669,30]
[336507021,1724886049750,-190.91693015,0.00036695,30]
[336507022,1724886049773,-847.05031563,0.00036698,30]
[336507023,1724886049801,-50000.0,0.00037,37]
[336507024,1724886049828,-1075.0,0.00037042,30]
[336507025,1724886049861,-2000.0,0.00037073,120]
[336507026,1724886049885,-152.66376,0.0003713,120]
[336507027,1724886049910,-1716.44,0.00037395,30]
[336507028,1724886049935,-151.0,0.00037671,120]
[336507029,1724886049959,-150.0,0.00037743,120]
[336507030,1724886049986,-50000.0,0.00038,38]
[336507031,1724886050012,-1000.0,0.00038,30]
[336507032,1724886050036,-150.0,0.00038,120]
[336507033,1724886050061,-20376.97620046,0.00038,30]
[336507034,1724886050092,-3462.45402628,0.00038,30]
[336507035,1724886050118,-2029.03,0.00038,32]
[336507036,1724886050142,-1620.1335306,0.00038,120]
[336507037,1724886050167,-156.26254,0.00038,60]
[336507038,1724886050193,-150.0,0.00038078,120]
[336507039,1724886050218,-500.0,0.00038356,120]
[336507040,1724886050243,-500.0,0.00038356,120]
[336507041,1724886050271,-576.19687683,0.00038356,120]
[336507042,1724886050295,-500.0,0.00038356,120]
[336507043,1724886050319,-500.0,0.00038356,120]
[336507044,1724886050345,-500.0,0.00038356,120]
[336507045,1724886050370,-500.0,0.00038356,120]
[336507046,1724886050394,-500.0,0.00038356,120]
[336507047,1724886050417,-500.0,0.00038356,120]
[336507048,1724886050444,-500.0,0.00038356,120]
[336507049,1724886050469,-500.0,0.00038356,120]
[336507050,1724886050492,-500.0,0.00038356,120]
[336507051,1724886050516,-500.0,0.00038356,120]
[336507052,1724886050539,-500.0,0.00038356,120]
[336507053,1724886050563,-600.47,0.00038356,120]
[336507054,1724886050588,-500.0,0.00038356,120]
[336507055,1724886050614,-500.0,0.00038356,120]
[336507056,1724886050639,-500.0,0.00038356,120]
[336507057,1724886050665,-542.69,0.00038356,120]
[336507058,1724886050688,-527.38171571,0.00038356,120]
[336507059,1724886050712,-500.0,0.00038356,120]
[336507060,1724886050735,-500.0,0.00038356,120]
[336507061,1724886050760,-500.0,0.00038356,120]
[336507062,1724886050784,-500.0,0.00038356,120]
[336507063,1724886050808,-500.0,0.00038356,120]
[336507064,1724886050832,-500.0,0.00038356,120]
[336507065,1724886050856,-560.05,0.00038356,120]
[336507066,1724886050880,-2997.01,0.00038356,120]
[336507067,1724886050904,-500.0,0.00038356,120]
[336507068,1724886050928,-1838.19,0.00038356,120]
[336507069,1724886050953,-501.60343054,0.00038356,120]
[336507070,1724886050977,-500.0,0.00038356,120]
[336507071,1724886051002,-500.0,0.00038356,120]
[336507072,1724886051026,-1731.8,0.00038356,120]
[336507073,1724886051050,-500.0,0.00038356,120]
[336507074,1724886051076,-500.0,0.00038356,120]
[336507075,1724886051104,-694.65,0.00038356,120]
[336507076,1724886051129,-1091.94,0.00038356,120]
[336507077,1724886051154,-529.35510124,0.00038356,120]
[336507078,1724886051181,-3870.37,0.00038356,120]
[336507079,1724886051208,-902.42,0.00038356,120]
[336507080,1724886051234,-500.0,0.00038356,120]
[336507081,1724886051261,-4019.78,0.00038356,120]
[336507082,1724886051287,-500.0,0.00038356,120]
[336507083,1724886051314,-3115.98,0.00038356,120]
[336507084,1724886051342,-500.0,0.00038356,120]
[336507085,1724886051368,-500.0,0.00038356,120]
[336507086,1724886051393,-500.0,0.00038356,120]
[336507087,1724886051418,-1670.06,0.00038356,120]
[336507088,1724886051443,-610.54,0.00038356,120]
[336507089,1724886051467,-500.0,0.00038356,120]
[336507090,1724886051491,-715.66,0.00038356,120]
[336507091,1724886051516,-654.17,0.00038356,120]
[336507092,1724886051540,-690.26,0.00038356,120]
[336507093,1724886051565,-254.53776137,0.00038356,120]
[336507094,1724886051592,-500.0,0.00038356,120]
[336507095,1724886051617,-500.0,0.00038356,120]
[336507096,1724886051641,-243.02615328,0.00038356,120]
[336507097,1724886051668,-3579.81,0.00038356,120]
[336507098,1724886051693,-557.91,0.00038356,120]
[336507099,1724886051717,-500.0,0.00038356,120]
[336507100,1724886051743,-1770.22,0.00038356,120]
[336507101,1724886051769,-725.33,0.00038356,120]
[336507102,1724886051794,-1101.4,0.00038356,120]
[336507103,1724886051819,-1339.63,0.00038356,120]
[336507104,1724886051845,-500.0,0.00038356,120]
[336507105,1724886051870,-575.45,0.00038356,120]
[336507106,1724886051894,-500.0,0.00038356,120]
[336507107,1724886051919,-521.05528012,0.00038356,120]
[336507108,1724886052228,-500.0,0.00038356,120]
[336507109,1724886052257,-500.0,0.00038356,120]
[336507110,1724886052283,-1147.76,0.00038356,120]
[336507111,1724886052311,-864.87,0.00038356,120]
[336507112,1724886052338,-734.35,0.00038356,120]
[336507113,1724886052366,-500.0,0.00038356,120]
[336507114,1724886052396,-1201.5,0.00038356,120]
[336507115,1724886052424,-4258.55,0.00038356,120]
[336507116,1724886052452,-1369.79,0.00038356,120]
[336507117,1724886052480,-500.0,0.00038356,120]
[336507118,1724886052509,-500.0,0.00038356,120]
[336507119,1724886052535,-500.0,0.00038356,120]
[336507120,1724886052561,-500.0,0.00038356,120]
[336507121,1724886052587,-500.0,0.00038356,120]
[336507122,1724886052613,-1370.96,0.00038356,120]
[336507123,1724886052642,-500.0,0.00038356,120]
[336507124,1724886052669,-1208.19,0.00038356,120]
[336507125,1724886052694,-500.0,0.00038356,120]
[336507126,1724886052724,-533.06,0.00038356,120]
[336507127,1724886052750,-551.99,0.00038356,120]
[336507128,1724886052774,-500.0,0.00038356,120]
[336507129,1724886052799,-916.66,0.00038356,120]
[336507130,1724886052825,-1754.5,0.00038356,120]
[336507131,1724886052850,-500.0,0.00038356,120]
[336507132,1724886052875,-500.0,0.00038356,120]
[336507133,1724886052900,-2599.97,0.00038356,120]
[336507134,1724886052924,-500.0,0.00038356,120]
[336507135,1724886052948,-500.0,0.00038356,120]
[336507136,1724886052972,-500.0,0.00038356,120]
[336507137,1724886052996,-500.0,0.00038356,120]
[336507138,1724886053022,-2482.47,0.00038356,120]
[336507139,1724886053047,-732.18,0.00038356,120]
[336507140,1724886053072,-251.12394838,0.00038356,120]
[336507141,1724886053098,-500.0,0.00038356,120]
[336507142,1724886053123,-500.0,0.00038356,120]
[336507143,1724886053149,-500.0,0.00038356,120]
[336507144,1724886053173,-500.0,0.00038356,120]
[336507145,1724886053199,-926.61,0.00038356,120]
[336507146,1724886053224,-1459.18,0.00038356,120]
[336507147,1724886053249,-583.51,0.00038356,120]
[336507148,1724886053277,-703.97,0.00038356,120]
[336507149,1724886053302,-1237.13,0.00038356,120]
[336507150,1724886053326,-2076.73,0.00038356,120]
[336507151,1724886053353,-652.83,0.00038356,120]
[336507152,1724886053377,-3514.67,0.00038356,120]
[336507153,1724886053403,-500.0,0.00038356,120]
[336507154,1724886053428,-727.0,0.00038356,120]
[336507155,1724886053454,-500.0,0.00038356,120]
[336507156,1724886053479,-928.47,0.00038356,120]
[336507157,1724886053505,-500.0,0.00038356,120]
[336507158,1724886053531,-4774.12,0.00038356,120]
[336507159,1724886053557,-500.0,0.00038356,120]
[336507160,1724886053583,-500.0,0.00038356,120]
[336507161,1724886053609,-500.0,0.00038356,120]
[336507162,1724886053635,-500.0,0.00038356,30]
[336507163,1724886053660,-1064.54,0.00038356,120]
[336507164,1724886053684,-500.0,0.00038356,120]
[336507165,1724886053707,-500.0,0.00038356,120]
[336507166,1724886053731,-500.0,0.00038356,120]
[336507167,1724886053755,-500.0,0.00038356,120]
[336507168,1724886053778,-500.0,0.00038356,120]
[336507169,1724886053802,-578.43,0.00038356,120]
[336507170,1724886053826,-1779.79,0.00038356,120]
[336507171,1724886053852,-500.0,0.00038356,120]
[336507172,1724886053876,-500.0,0.00038356,120]
[336507173,1724886053903,-1416.66,0.00038356,120]
[336507174,1724886053929,-3210.07,0.00038356,120]
[336507175,1724886053953,-500.0,0.00038356,120]
[336507176,1724886053977,-683.48,0.00038356,120]
[336507177,1724886054001,-1426.45,0.00038356,120]
[336507178,1724886054027,-1155.3,0.00038356,120]
[336507179,1724886054052,-500.0,0.00038356,120]
[336507180,1724886054149,-513.89361731,0.00038356,120]
[336507181,1724886054174,-953.05,0.00038356,120]
[336507182,1724886054200,-500.0,0.00038356,120]
[336507183,1724886054225,-1953.57,0.00038356,120]
[336507184,1724886054249,-500.0,0.00038356,120]
[336507185,1724886054281,-500.0,0.00038356,120]
[336507186,1724886054309,-521.17,0.00038356,120]
[336507187,1724886054336,-500.0,0.00038356,120]
[336507188,1724886054361,-500.0,0.00038356,120]
[336507189,1724886054387,-500.0,0.00038356,120]
[336507190,1724886054412,-500.0,0.00038356,120]
[336507191,1724886054437,-500.0,0.00038356,120]
[336507192,1724886054462,-2061.37,0.00038356,120]
[336507193,1724886054487,-500.0,0.00038356,120]
[336507194,1724886054512,-1334.57,0.00038356,120]
[336507195,1724886054537,-156.63492217,0.00038356,120]
[336507196,1724886054562,-746.59,0.00038356,120]
[336507197,1724886054588,-663.07,0.00038356,120]
[336507198,1724886054613,-500.0,0.00038356,60]
[336507199,1724886054639,-500.0,0.00038356,120]
[336507200,1724886054663,-500.0,0.00038356,120]
[336507201,1724886054688,-502.4281511,0.00038356,120]
[336507202,1724886054714,-500.0,0.00038356,120]
[336507203,1724886054739,-1030.68,0.00038356,120]
[336507204,1724886054763,-500.0,0.00038356,120]
[336507205,1724886054786,-500.0,0.00038356,120]
[336507206,1724886054812,-910.03,0.00038356,120]
[336507207,1724886054837,-500.0,0.00038356,120]
[336507208,1724886054861,-500.0,0.00038356,120]
[336507209,1724886054886,-500.0,0.00038356,120]
[336507210,1724886054911,-3077.64,0.00038356,120]
[336507211,1724886054936,-602.48,0.00038356,120]
[336507212,1724886054960,-500.0,0.00038356,120]
[336507213,1724886054985,-2165.38,0.00038356,120]
[336507214,1724886055008,-585.27,0.00038356,120]
[336507215,1724886055032,-500.0,0.00038356,120]
[336507216,1724886055058,-533.20918997,0.00038356,120]
[336507217,1724886055082,-500.0,0.00038356,120]
[336507218,1724886055106,-500.0,0.00038356,120]
[336507219,1724886055130,-500.0,0.00038356,120]
[336507220,1724886055155,-2823.61,0.00038356,120]
[336507221,1724886055180,-500.0,0.00038356,120]
[336507222,1724886055206,-500.0,0.00038356,120]
[336507223,1724886055230,-500.0,0.00038356,120]
[336507224,1724886055256,-296.9796802,0.00038356,120]
[336507225,1724886055280,-500.0,0.00038356,120]
[336507226,1724886055306,-548.35,0.00038356,120]
[336507227,1724886055333,-529.15,0.00038356,120]
[336507228,1724886055356,-500.0,0.00038356,120]
[336507229,1724886055380,-548.13,0.00038356,120]
[336507230,1724886055405,-500.0,0.00038356,120]
[336507231,1724886055429,-500.0,0.00038356,120]
[336507232,1724886055451,-500.0,0.00038356,120]
[336507233,1724886055474,-500.0,0.00038356,120]
[336507234,1724886055501,-500.0,0.00038356,120]
[336507235,1724886055527,-2554.35,0.00038356,120]
[336507236,1724886055551,-500.0,0.00038356,120]
[336507237,1724886055575,-500.0,0.00038356,120]
[336507238,1724886055601,-500.0,0.00038356,120]
[336507239,1724886055627,-500.0,0.00038356,120]
[336507240,1724886055654,-500.0,0.00038356,120]
[336507241,1724886055679,-500.0,0.00038356,120]
[336507242,1724886055703,-699.03,0.00038356,120]
[336507243,1724886055727,-500.0,0.00038356,120]
[336507244,1724886055751,-676.5,0.00038356,120]
[336507245,1724886055775,-182.44377108,0.00038356,120]
[336507246,1724886055802,-500.0,0.00038356,120]
[336507247,1724886055828,-3388.55,0.00038356,120]
[336507248,1724886055855,-500.0,0.00038356,120]
[336507249,1724886055881,-1000.0,0.00038356,120]
[336507250,1724886055906,-535.76,0.00038356,120]
[336507251,1724886055931,-500.0,0.00038356,120]
[336507252,1724886055955,-1865.1,0.00038356,120]
[336507253,1724886055980,-500.0,0.00038356,120]